fUST/lending_fUST_20260107
["ID","MTS","AMOUNT","RATE_DAILY","PERIOD"]
[400632593,1767753042686,-9602.0,0.00017109,2]
[400632594,1767753042696,-9602.0,0.00017246,2]
[400632595,1767753042705,-9602.0,0.00017383,2]
[400632596,1767753042715,-7842.6243808,0.00017434,2]
[400632597,1767753042724,-9602.0,0.0001752,2]
[400632598,1767753042733,-1013.03173422,0.00017534,2]
[400632599,1767753042742,-4000.0,0.00017534,2]
[400632600,1767753042751,-4000.0,0.00017534,2]
[400632601,1767753042760,-2135.36642838,0.000176,2]
[400632602,1767753042769,-4500.0,0.00017656,2]
[400632603,1767753042778,-2518.7274586,0.00017656,2]
[400632604,1767753042787,-9602.0,0.00017657,2]
[400632605,1767753042795,-9602.0,0.00017794,2]
[400632606,1767753042804,-1152.0,0.00017927,2]
[400632607,1767753042813,-9602.0,0.00017931,2]
[400632608,1767753042822,-69771.1574339,0.00018,5]
[400632609,1767753042834,-29993.60411824,0.00018,2]
[400632610,1767753042844,-9616.22789867,0.00018068,2]
[400632611,1767753042853,-4023.87949745,0.00018082,2]
[400632612,1767753042862,-4311.15223911,0.00018082,2]
[400632613,1767753042874,-2896.7176939,0.00018204,2]
[400632614,1767753042884,-317.32012967,0.00018363,2]
[400632615,1767753042894,-839.9348196,0.00018379,8]
[400632617,1767753042904,-1000.0,0.00018461,2]
[400632619,1767753042914,-244.0,0.00018461,2]
[400632620,1767753042924,-239.80377515,0.00018712,3]
[400632621,1767753042933,-4350.48101007,0.000189,2]
[400632622,1767753042942,-82173.96948233,0.000189,2]
[400632623,1767753042951,-303.45210145,0.000189,2]
[400632624,1767753042960,-50106.92164842,0.00019,2]
[400632625,1767753043093,-1529.6842648,0.00019,2]
[400632626,1767753043107,-335.69967713,0.00019,2]
[400632627,1767753043118,-2603.49,0.00019,2]
[400632628,1767753043127,-17949.00191859,0.00019,2]
[400632629,1767753043137,-7000.62506532,0.00019,2]
[400632630,1767753043146,-303.45210145,0.00019089,2]
[400632631,1767753043154,-882.2314,0.00019178,4]
[400632632,1767753043164,-882.2314,0.00019178,2]
[400632633,1767753043173,-900.0,0.00019178,2]
[400632634,1767753043182,-167.95,0.000192,2]
[400632635,1767753043191,-319.22,0.000192,2]
[400632636,1767753043201,-358.5,0.000192,2]
[400632637,1767753043210,-3056.27,0.000192,2]
[400632638,1767753043219,-497.81118302,0.00019205,5]
[400632639,1767753043228,-7842.62438078,0.00019639,2]
[400632640,1767753043237,-516.0,0.00019673,2]
[400632641,1767753043246,-649.43158012,0.00019726,2]
[400632642,1767753043255,-1042.97184049,0.00019822,11]
[400632643,1767753043265,-443.6,0.00019843,2]
[400632644,1767753043274,-6164.37384409,0.00019945,2]
[400632645,1767753043283,-151.0,0.00019945,2]
[400632646,1767753043292,-391.28206,0.00019945,2]
[400632647,1767753043302,-391.28206,0.00019945,2]
[400632648,1767753043311,-151.0,0.00019945,2]
[400632649,1767753043320,-391.28206,0.00019945,2]
[400632650,1767753043330,-151.0,0.00019945,2]
[400632651,1767753043338,-391.28206,0.00019945,2]
[400632652,1767753043347,-151.0,0.00019945,2]
[400632653,1767753043356,-151.0,0.00019945,2]
[400632654,1767753043365,-151.0,0.00019945,2]
[400632655,1767753043374,-151.0,0.00019945,2]
[400632656,1767753043383,-151.0,0.00019945,2]
[400632657,1767753043392,-151.0,0.00019945,2]
[400632658,1767753043402,-1322.532901,0.00019945,2]
[400632659,1767753043411,-1322.532901,0.00019945,2]
[400632660,1767753043423,-1322.532901,0.00019945,2]
[400632661,1767753043433,-292.415007,0.00019945,2]
[400632662,1767753043443,-1322.532901,0.00019945,2]
[400632663,1767753043456,-292.415007,0.00019945,2]
[400632664,1767753043467,-292.415007,0.00019945,2]
[400632665,1767753043478,-292.415007,0.00019945,2]
[400632666,1767753043488,-193.751702,0.00019945,2]
[400632667,1767753043498,-818.720155,0.00019945,2]
[400632668,1767753043510,-818.720155,0.00019945,2]
[400632669,1767753043519,-818.720155,0.00019945,2]
[400632670,1767753043529,-151.0,0.00019945,2]
[400632671,1767753043539,-151.0,0.00019945,2]
[400632672,1767753043548,-937.0,0.0002,2]
[400632673,1767753043558,-181.25348447,0.0002,2]
[400632674,1767753043567,-1815.6497538,0.0002,2]
[400632675,1767753043576,-300.05779371,0.0002,7]
[400632676,1767753043585,-210.20532748,0.0002,2]
[400632677,1767753043594,-1035.0,0.0002,2]
[400632678,1767753043603,-1000.0,0.00020307,2]
[400632679,1767753043612,-492.0,0.00020307,2]
[400632680,1767753043621,-354.40949548,0.00020363,2]
[400632681,1767753043631,-195.15,0.00020856,2]
[400632682,1767753043640,-277.06974618,0.00021,2]
[400632683,1767753043650,-1081.32871409,0.00021,10]
[400632685,1767753043659,-27032.71808146,0.00021,2]
[400632687,1767753043669,-1260.59963349,0.00021265,14]
[400632689,1767753043680,-443.6,0.00021444,2]
[400632691,1767753043689,-191.0,0.00021452,4]
[400632694,1767753043698,-135749.19503915,0.000215,2]
[400632695,1767753043707,-234.06,0.00021711,2]
[400632697,1767753043717,-2000.0,0.00021819,7]
[400632701,1767753043726,-7842.62438078,0.00021843,2]
[400632704,1767753043735,-4350.48101007,0.0002185,2]
[400632706,1767753043744,-568.10876052,0.0002196,10]
[400632708,1767753043753,-323.48,0.00022,2]
[400632709,1767753043762,-2625.47,0.00022,7]
[400632711,1767753043771,-84987.34441726,0.00022,2]
[400632713,1767753043780,-171.84386487,0.00022,10]
[400632715,1767753043789,-19751.71579539,0.00022,7]
[400632717,1767753043798,-828.88420571,0.00022,20]
[400632718,1767753043807,-33706.85557129,0.00022,2]
[400632719,1767753043815,-358.5,0.00022,7]
[400632720,1767753043824,-319.22,0.00022,7]
[400632721,1767753043837,-3056.27,0.00022,14]
[400632722,1767753043846,-1000.0,0.00022338,10]
[400632723,1767753043855,-791.0,0.00022338,10]
[400632724,1767753043863,-391.49886128,0.00022363,2]
[400632725,1767753043874,-300.0,0.00022466,2]
[400632726,1767753043883,-1491.55201454,0.00022707,16]
[400632727,1767753043891,-2000.0,0.00022728,7]
[400632728,1767753043903,-450.0,0.00023014,2]
[400632729,1767753043912,-443.6,0.00023045,2]
[400632730,1767753043922,-2300.0,0.00023157,2]
[400632731,1767753043930,-500.0,0.00023257,2]
[400632732,1767753043939,-6164.37384409,0.00023417,2]
[400632733,1767753043948,-1974.17602471,0.0002344,2]
[400632734,1767753043957,-600.0,0.00023562,2]
[400632735,1767753043966,-2000.0,0.00023637,7]
[400632736,1767753043975,-500.0,0.00023718,2]
[400632737,1767753043984,-2300.0,0.0002382,2]
[400632738,1767753043993,-500.0,0.00023827,2]
[400632739,1767753044002,-2300.0,0.00023848,2]
[400632740,1767753044011,-23906.54290022,0.00024,2]
[400632741,1767753044020,-245.28508092,0.00024,60]
[400632742,1767753044029,-1734.693215,0.00024,2]
[400632743,1767753044038,-465.43647205,0.00024,2]
[400632744,1767753044047,-618.86,0.00024,14]
[400632745,1767753044056,-1020.52354742,0.00024,2]
[400632746,1767753044065,-7842.62438078,0.00024048,2]
[400632748,1767753044075,-750.0,0.0002411,2]
[400632749,1767753044084,-511401.99227846,0.00024142,2]
[400632750,1767753044094,-151.0,0.00024142,2]
[400632751,1767753044104,-391.28206,0.00024142,2]
[400632752,1767753044114,-391.28206,0.00024142,2]
[400632753,1767753044123,-164.70126,0.00024142,2]
[400632754,1767753044132,-391.28206,0.00024142,2]
[400632755,1767753044141,-151.0,0.00024142,2]
[400632756,1767753044150,-391.28206,0.00024142,2]
[400632757,1767753044159,-151.0,0.00024142,2]
[400632758,1767753044168,-151.0,0.00024142,2]
[400632759,1767753044177,-151.0,0.00024142,2]
[400632760,1767753044187,-151.0,0.00024142,2]
[400632761,1767753044196,-151.0,0.00024142,2]
[400632762,1767753044205,-151.0,0.00024142,2]
[400632763,1767753044214,-1322.532901,0.00024142,2]
[400632764,1767753044223,-1322.532901,0.00024142,2]
[400632765,1767753044232,-1322.532901,0.00024142,2]
[400632766,1767753044241,-292.415007,0.00024142,2]
[400632767,1767753044251,-1322.532901,0.00024142,2]
[400632768,1767753044260,-292.415007,0.00024142,2]
[400632769,1767753044268,-292.415007,0.00024142,2]
[400632770,1767753044278,-292.415007,0.00024142,2]
[400632771,1767753044287,-818.720155,0.00024142,2]
[400632772,1767753044296,-818.720155,0.00024142,2]
[400632773,1767753044305,-151.0,0.00024142,2]
[400632774,1767753044314,-818.720155,0.00024142,2]
[400632775,1767753044323,-151.0,0.00024142,2]
[400632776,1767753044332,-1734.82289305,0.0002415,19]
[400632777,1767753044343,-195.15,0.00024178,2]
[400632778,1767753044352,-156.0,0.00024192,12]
[400632779,1767753044362,-30240.28138531,0.000242,2]
[400632780,1767753044371,-358.5,0.000242,7]
[400632781,1767753044380,-319.22,0.000242,7]
[400632782,1767753044390,-3056.27,0.000242,14]
[400632783,1767753044399,-719.25474546,0.00024251,2]
[400632784,1767753044410,-965.0,0.0002427,7]
[400632785,1767753044420,-428.58822709,0.00024363,2]
[400632786,1767753044432,-5000.0,0.00024368,2]
[400632787,1767753044441,-965.0,0.0002453,2]
[400632788,1767753044451,-2000.0,0.00024546,7]
[400632789,1767753044462,-965.0,0.00024548,2]
[400632790,1767753044472,-1000.0,0.00024572,10]
[400632791,1767753044481,-1000.0,0.00024572,10]
[400632792,1767753044491,-965.0,0.00024619,2]
[400632793,1767753044501,-443.6,0.00024647,2]
[400632794,1767753044510,-156724.58563049,0.0002465,2]
[400632795,1767753044519,-513.79712507,0.0002465,2]
[400632796,1767753044528,-900.0,0.00024658,2]
[400632797,1767753044537,-380.0,0.00024658,2]
[400632798,1767753044547,-500.0,0.00024658,2]
[400632799,1767753044556,-967.0,0.00024708,7]
[400632800,1767753044565,-965.0,0.00024719,2]
[400632801,1767753044574,-965.0,0.00024732,2]
[400632802,1767753044584,-2300.0,0.00024763,2]
[400632803,1767753044594,-16821.80898001,0.00024774,2]
[400632804,1767753044603,-500.0,0.00024795,2]
[400632805,1767753044612,-965.0,0.00024799,2]
[400632806,1767753044621,-4350.48101007,0.000248,2]
[400632807,1767753044630,-965.0,0.00024818,7]
[400632808,1767753044639,-968.0,0.00024831,2]
[400632809,1767753044649,-965.0,0.00024885,2]
[400632810,1767753044658,-151.0,0.000249,7]
[400632811,1767753044668,-151.0,0.000249,7]
[400632812,1767753044678,-151.0,0.000249,7]
[400632814,1767753044687,-151.0,0.000249,7]
[400632815,1767753044696,-151.0,0.000249,7]
[400632816,1767753044708,-151.0,0.000249,7]
[400632817,1767753044719,-151.0,0.000249,7]
[400632818,1767753044728,-189.060693,0.000249,7]
[400632819,1767753044737,-151.0,0.000249,7]
[400632820,1767753044746,-151.0,0.000249,7]
[400632821,1767753044755,-151.0,0.000249,7]
[400632822,1767753044765,-151.0,0.000249,7]
[400632823,1767753044774,-883.518597,0.000249,7]
[400632824,1767753044784,-883.518597,0.000249,7]
[400632825,1767753044793,-883.518597,0.000249,7]
[400632826,1767753044802,-883.518597,0.000249,7]
[400632827,1767753044811,-364.504181,0.000249,7]
[400632828,1767753044821,-364.504181,0.000249,7]
[400632829,1767753044836,-183.522133,0.000249,7]
[400632830,1767753044845,-364.504181,0.000249,7]
[400632831,1767753044855,-364.504181,0.000249,7]
[400632832,1767753044864,-151.0,0.000249,7]
[400632833,1767753044875,-246.267723,0.000249,7]
[400632834,1767753044884,-246.267723,0.000249,7]
[400632835,1767753044894,-246.267723,0.000249,7]
[400632836,1767753044903,-246.267723,0.000249,7]
[400632837,1767753044912,-151.0,0.000249,7]
[400632838,1767753044921,-151.0,0.000249,7]
[400632839,1767753044932,-292.141919,0.000249,7]
[400632840,1767753044942,-151.0,0.000249,7]
[400632841,1767753044951,-151.0,0.000249,7]
[400632842,1767753044961,-342.903353,0.000249,7]
[400632843,1767753045000,-342.903353,0.000249,7]
[400632844,1767753045010,-342.903353,0.000249,7]
[400632845,1767753045020,-151.0,0.000249,7]
[400632846,1767753045029,-342.903353,0.000249,7]
[400632847,1767753045039,-204.454588,0.000249,7]
[400632848,1767753045048,-151.0,0.000249,7]
[400632849,1767753045058,-207.616806,0.000249,7]
[400632850,1767753045067,-151.0,0.000249,7]
[400632851,1767753045076,-151.0,0.000249,7]
[400632852,1767753045085,-631130.268203,0.000249,2]
[400632853,1767753045095,-151.0,0.000249,7]
[400632854,1767753045104,-814.437021,0.000249,7]
[400632855,1767753045113,-814.437021,0.000249,7]
[400632856,1767753045122,-151.0,0.000249,7]
[400632857,1767753045131,-814.437021,0.000249,7]
[400632858,1767753045141,-814.437021,0.000249,7]
[400632859,1767753045150,-151.0,0.000249,2]
[400632860,1767753045159,-153.895656,0.000249,7]
[400632861,1767753045168,-151.0,0.000249,2]
[400632862,1767753045177,-201.63893,0.000249,7]
[400632863,1767753045187,-829.099806,0.000249,7]
[400632864,1767753045196,-829.099806,0.000249,7]
[400632865,1767753045205,-2600.536544,0.000249,7]
[400632866,1767753045214,-829.099806,0.000249,7]
[400632867,1767753045224,-2600.536544,0.000249,7]
[400632868,1767753045233,-255.270679,0.000249,7]
[400632869,1767753045242,-829.099806,0.000249,7]
[400632870,1767753045252,-2600.536544,0.000249,7]
[400632871,1767753045263,-2600.536544,0.000249,7]
[400632872,1767753045272,-2117.252513,0.000249,7]
[400632873,1767753045282,-151.0,0.000249,7]
[400632874,1767753045292,-2117.252513,0.000249,7]
[400632875,1767753045303,-151.0,0.000249,7]
[400632876,1767753045313,-2117.252513,0.000249,7]
[400632877,1767753045322,-151.0,0.000249,7]
[400632878,1767753045332,-2117.252513,0.000249,7]
[400632879,1767753045342,-209.486994,0.000249,7]
[400632880,1767753045351,-1270.137933,0.000249,7]
[400632881,1767753045361,-449.104289,0.000249,7]
[400632882,1767753045370,-1270.137933,0.000249,7]
[400632883,1767753045379,-430.552519,0.000249,7]
[400632884,1767753045389,-449.104289,0.000249,7]
[400632885,1767753045400,-1270.137933,0.000249,7]
[400632886,1767753045410,-430.552519,0.000249,7]
[400632887,1767753045420,-449.104289,0.000249,7]
[400632888,1767753045429,-1270.137933,0.000249,7]
[400632889,1767753045438,-430.552519,0.000249,7]
[400632890,1767753045447,-449.104289,0.000249,7]
[400632891,1767753045458,-430.552519,0.000249,7]
[400632892,1767753045469,-151.0,0.000249,7]
[400632893,1767753045479,-153.683464,0.000249,7]
[400632894,1767753045489,-157.736592,0.000249,7]
[400632895,1767753045498,-391.28206,0.000249,7]
[400632896,1767753045508,-391.28206,0.000249,7]
[400632897,1767753045517,-391.28206,0.000249,7]
[400632898,1767753045526,-151.0,0.000249,7]
[400632899,1767753045535,-391.28206,0.000249,7]
[400632900,1767753045544,-151.0,0.000249,7]
[400632901,1767753045553,-151.0,0.000249,7]
[400632902,1767753045563,-151.0,0.000249,7]
[400632903,1767753045572,-151.0,0.000249,7]
[400632904,1767753045582,-151.0,0.000249,7]
[400632905,1767753045591,-151.0,0.000249,7]
[400632906,1767753045600,-1322.532901,0.000249,7]
[400632907,1767753045609,-1322.532901,0.000249,7]
[400632908,1767753045618,-1322.532901,0.000249,7]
[400632909,1767753045627,-292.415007,0.000249,7]
[400632910,1767753045637,-1322.532901,0.000249,7]
[400632911,1767753045646,-292.415007,0.000249,7]
[400632912,1767753045655,-292.415007,0.000249,7]
[400632913,1767753045665,-292.415007,0.000249,7]
[400632914,1767753045674,-818.720155,0.000249,7]
[400632915,1767753045683,-818.720155,0.000249,7]
[400632916,1767753045692,-151.0,0.000249,7]
[400632917,1767753045701,-818.720155,0.000249,7]
[400632918,1767753045710,-151.0,0.000249,7]
[400632919,1767753045719,-500.0,0.00024932,2]
[400632920,1767753045728,-111528.65958939,0.00025,15]
[400632921,1767753045737,-1084.98194204,0.00025,2]
[400632922,1767753045746,-11300.39685069,0.00025,2]
[400632923,1767753045755,-2673.38990505,0.00025,2]
[400632924,1767753045764,-10364.0,0.00025,2]
[400632925,1767753045774,-500.0,0.00025,2]
[400632926,1767753045783,-300.0,0.00025,30]
[400632927,1767753045793,-1363.86254436,0.00025,2]
[400632928,1767753045802,-759.01355597,0.00025,2]
[400632929,1767753045811,-1019.0,0.00025,2]
[400632930,1767753045820,-968.0,0.00025036,7]
[400632931,1767753045831,-500.0,0.00025069,2]
[400632932,1767753045841,-965.0,0.00025087,2]
[400632933,1767753045850,-579.85119945,0.000252,5]
[400632934,1767753045859,-250.0,0.00025205,2]
[400632935,1767753045869,-881.07580657,0.00025205,2]
[400632936,1767753045879,-500.0,0.00025206,2]
[400632937,1767753045889,-5000.0,0.00025297,2]
[400632938,1767753045900,-2625.47,0.000253,7]
[400632939,1767753045910,-965.0,0.00025345,2]
[400632940,1767753045919,-2000.0,0.00025455,7]
[400632941,1767753045929,-900.0,0.00025469,3]
[400632942,1767753045938,-1000.0,0.000255,2]
[400632943,1767753045948,-965.0,0.00025524,7]
[400632944,1767753045958,-2300.0,0.00025573,7]
[400632945,1767753045968,-2300.0,0.00025584,7]
[400632946,1767753045977,-3056.27,0.000256,14]
[400632947,1767753045987,-969.0,0.00025651,2]
[400632948,1767753045996,-358.5,0.000257,7]
[400632949,1767753046006,-319.22,0.000257,7]
[400632950,1767753046015,-2300.0,0.00025737,7]
[400632951,1767753046025,-350.0,0.00025753,2]
[400632952,1767753046035,-2300.0,0.00025788,7]
[400632953,1767753046044,-967.0,0.00025904,2]
[400632954,1767753046054,-965.0,0.00025931,7]
[400632955,1767753046063,-15484.73050321,0.00026,30]
[400632956,1767753046073,-17467.00445744,0.00026,2]
[400632957,1767753046083,-161.0,0.00026,5]
[400632958,1767753046094,-1019.0,0.00026,2]
[400632959,1767753046104,-500.0,0.00026026,7]
[400632960,1767753046114,-967.0,0.00026143,2]
[400632961,1767753046123,-194.56620473,0.0002616,2]
[400632963,1767753046132,-500.0,0.00026176,7]
[400632964,1767753046142,-500.0,0.00026223,7]
[400632965,1767753046151,-5000.0,0.00026225,2]
[400632966,1767753046161,-965.0,0.00026234,7]
[400632967,1767753046171,-443.6,0.00026248,2]
[400632968,1767753046180,-7842.62438078,0.00026253,2]
[400632969,1767753046190,-965.0,0.00026284,2]
[400632970,1767753046202,-450.0,0.00026301,2]
[400632971,1767753046213,-465.67759289,0.00026363,2]
[400632972,1767753046223,-2000.0,0.00026365,7]
[400632973,1767753046233,-174.0,0.00026384,20]
[400632974,1767753046243,-967.0,0.00026513,2]
[400632975,1767753046253,-200.0,0.0002654,14]
[400632976,1767753046263,-965.0,0.00026575,2]
[400632977,1767753046273,-2300.0,0.00026628,7]
[400632978,1767753046283,-500.0,0.00026634,7]
[400632980,1767753046292,-500.0,0.00026656,7]
[400632981,1767753046301,-965.0,0.00026674,2]
[400632982,1767753046311,-500.0,0.00026676,7]
[400632983,1767753046320,-15924.46772426,0.000267,3]
[400632984,1767753046330,-965.0,0.00026771,2]
[400632985,1767753046339,-53819.04156786,0.00026778,14]
[400632986,1767753046349,-550.0,0.00026849,2]
[400632987,1767753046358,-6164.37384409,0.0002689,2]
[400632988,1767753046368,-2625.47,0.00027,7]
[400632989,1767753046378,-184.0,0.00027,7]
[400632990,1767753046387,-600.0,0.00027,14]
[400632991,1767753046396,-503.77278596,0.00027,2]
[400632992,1767753046406,-302810.56771783,0.00027,7]
[400632993,1767753046416,-1019.0,0.00027,2]
[400632994,1767753046426,-391.28206,0.00027,7]
[400632995,1767753046435,-391.28206,0.00027,7]
[400632996,1767753046445,-391.28206,0.00027,7]
[400632997,1767753046454,-154.083239,0.00027,7]
[400632998,1767753046464,-391.28206,0.00027,7]
[400632999,1767753046474,-151.000036,0.00027,7]
[400633000,1767753046483,-151.0,0.00027,7]
[400633001,1767753046492,-151.0,0.00027,7]
[400633002,1767753046501,-151.0,0.00027,7]
[400633003,1767753046511,-151.0,0.00027,7]
[400633004,1767753046520,-167.676279,0.00027,7]
[400633005,1767753046529,-1322.532901,0.00027,7]
[400633006,1767753046539,-1322.532901,0.00027,7]
[400633007,1767753046548,-1322.532901,0.00027,7]
[400633008,1767753046558,-3056.27,0.00027,14]
[400633009,1767753046568,-292.415007,0.00027,7]
[400633010,1767753046577,-1322.532901,0.00027,7]
[400633011,1767753046587,-292.415007,0.00027,7]
[400633012,1767753046596,-292.415007,0.00027,7]
[400633013,1767753046605,-292.415007,0.00027,7]
[400633014,1767753046615,-818.720155,0.00027,7]
[400633015,1767753046624,-818.720155,0.00027,7]
[400633016,1767753046634,-155.381927,0.00027,7]
[400633017,1767753046645,-818.720155,0.00027,7]
[400633018,1767753046655,-151.0,0.00027,7]
[400633019,1767753046665,-500.0,0.00027014,7]
[400633020,1767753046674,-1000.0,0.00027029,30]
[400633021,1767753046684,-1000.0,0.00027029,30]
[400633022,1767753046694,-579.0,0.00027029,30]
[400633023,1767753046703,-2255.16086582,0.00027035,24]
[400633024,1767753046712,-358.5,0.000271,7]
[400633025,1767753046722,-319.22,0.000271,7]
[400633026,1767753046732,-2300.0,0.00027152,7]
[400633027,1767753046741,-5000.0,0.00027154,2]
[400633028,1767753046750,-500.0,0.00027223,7]
[400633029,1767753046759,-2000.0,0.00027274,7]
[400633030,1767753046769,-2300.0,0.00027339,7]
[400633031,1767753046779,-587.58501506,0.00027371,7]
[400633032,1767753046789,-2300.0,0.00027379,7]
[400633033,1767753046799,-1615.48,0.00027397,2]
[400633034,1767753046809,-223.83334036,0.00027397,2]
[400633035,1767753046818,-650.0,0.00027397,5]
[400633036,1767753046828,-154.121516,0.00027397,7]
[400633037,1767753046841,-500.0,0.00027397,5]
[400633038,1767753046851,-514.81933417,0.00027397,5]
[400633039,1767753046860,-45934.68102333,0.000275,2]
[400633040,1767753046870,-509.6568282,0.0002751,2]
[400633041,1767753046882,-2036.58868547,0.0002751,2]
[400633042,1767753046891,-2300.0,0.00027638,7]
[400633043,1767753046901,-1000.0,0.00027777,5]
[400633044,1767753046913,-443.6,0.00027849,2]
[400633045,1767753046922,-750.0,0.00027945,5]
[400633046,1767753046931,-1000.0,0.00027945,5]
[400633047,1767753046941,-250.0,0.00027945,5]
[400633048,1767753046950,-250.0,0.00027945,5]
[400633049,1767753046960,-15317.68742945,0.00028,2]
[400633050,1767753046970,-519.98551023,0.00028,2]
[400633051,1767753046979,-1019.0,0.00028,2]
[400633052,1767753046989,-500.0,0.0002803,7]
[400633053,1767753046998,-500.0,0.00028068,7]
[400633054,1767753047008,-5000.0,0.00028082,2]
[400633055,1767753047018,-2300.0,0.00028106,7]
[400633056,1767753047027,-2000.0,0.00028183,7]
[400633057,1767753047037,-2300.0,0.00028214,7]
[400633058,1767753047046,-500.0,0.0002834,7]
[400633059,1767753047056,-502.7669587,0.00028363,2]
[400633060,1767753047066,-3056.27,0.000284,14]
[400633061,1767753047075,-500.0,0.0002841,7]
[400633062,1767753047085,-7842.62438078,0.00028457,2]
[400633063,1767753047095,-2530.95116606,0.00028477,27]
[400633064,1767753047104,-850.0,0.00028493,5]
[400633065,1767753047114,-1345.06654584,0.00028493,5]
[400633066,1767753047123,-350.0,0.00028493,5]
[400633067,1767753047133,-350.0,0.00028493,5]
[400633068,1767753047142,-126308.61182122,0.000285,7]
[400633069,1767753047151,-358.5,0.000285,7]
[400633070,1767753047161,-319.22,0.000285,7]
[400633071,1767753047171,-158.0,0.00028575,30]
[400633072,1767753047181,-2300.0,0.0002859,7]
[400633073,1767753047191,-2625.47,0.000286,7]
[400633074,1767753047201,-1000.0,0.000286,20]
[400633075,1767753047211,-2300.0,0.00028661,7]
[400633076,1767753047220,-15924.41,0.000287,3]
[400633077,1767753047229,-26870.27186945,0.0002876,2]
[400633078,1767753047238,-28361.51006566,0.0002876,20]
[400633079,1767753047248,-4000.0,0.0002876,5]
[400633080,1767753047258,-19134.21875192,0.0002876,2]
[400633081,1767753047267,-2300.0,0.00028766,7]
[400633082,1767753047277,-1615.48,0.00028767,4]
[400633083,1767753047286,-2300.0,0.00028772,7]
[400633084,1767753047295,-172.38864068,0.000288,7]
[400633085,1767753047305,-556.02181708,0.00028846,2]
[400633086,1767753047314,-2224.08726831,0.00028846,2]
[400633087,1767753047324,-5004.1963537,0.00028846,2]
[400633088,1767753047333,-2300.0,0.00028925,7]
[400633089,1767753047343,-280.28268334,0.0002898,7]
[400633090,1767753047352,-890.22929937,0.00029,2]
[400633091,1767753047361,-1019.0,0.00029,2]
[400633092,1767753047370,-5000.0,0.00029011,2]
[400633093,1767753047380,-950.0,0.00029041,5]
[400633094,1767753047390,-450.0,0.00029041,5]
[400633095,1767753047400,-450.0,0.00029041,5]
[400633096,1767753047409,-2000.0,0.00029092,7]
[400633097,1767753047418,-2300.0,0.00029345,7]
[400633098,1767753047427,-443.6,0.0002945,3]
[400633099,1767753047437,-500.0,0.00029543,7]
[400633100,1767753047447,-1050.0,0.00029589,5]
[400633101,1767753047456,-550.0,0.00029589,5]
[400633102,1767753047466,-550.0,0.00029589,5]
[400633103,1767753047475,-1000.0,0.00029732,30]
[400633104,1767753047485,-1000.0,0.00029732,30]
[400633105,1767753047494,-1000.0,0.00029732,30]
[400633106,1767753047503,-234.14787208,0.00029738,2]
[400633107,1767753047513,-936.59148831,0.00029738,2]
[400633108,1767753047522,-2107.3308487,0.00029738,2]
[400633109,1767753047532,-3746.36595325,0.00029738,2]
[400633110,1767753047541,-5853.69680196,0.00029738,2]
[400633111,1767753047550,-8429.32339482,0.00029738,2]
[400633112,1767753047560,-11473.24573183,0.00029738,2]
[400633113,1767753047569,-2300.0,0.00029752,7]
[400633114,1767753047579,-188.67967802,0.00029833,4]
[400633115,1767753047588,-500.0,0.00029894,7]
[400633116,1767753047600,-2300.0,0.0002991,7]